[Event "21st Bangkok CC Open 2024"]
[Site "Bangkok"]
[Date "2024.04.17"]
[Round "5.8"]
[White "Urazayev, Arystanbek"]
[Black "Subhayan Kundu"]
[Result "1-0"]
[ECO "C79"]
[WhiteElo "2471"]
[BlackElo "2341"]
[Annotator "TA"]
[PlyCount "41"]
[EventDate "2024.04.13"]
[EventType "swiss"]
[EventCountry "THA"]
[SourceTitle "playchess.com"]
[Source "ChessBase"]
[SourceQuality "1"]
[TimeControl "40/5400+30:1800+30"]

{[%evp 13,41,27,53,50,43,40,66,43,71,34,70,55,93,97,142,132,141,132,132,131,147,123,155,178,176,190,190,180,200,186]} 1. e4 {[%emt 0:02:02]} e5 {[%emt 0:13:45]} 2. Nf3 {[%emt 0:00:32]} Nc6 {[%emt 0:00:16]} 3. Bb5 {[%emt 0:00:52][%cal Bf1b5,Bb5a4,Ba4b3][%mdl 32]} a6 {[%emt 0:00:32]} 4. Ba4 {[%emt 0:00:03]} d6 {[%emt 0:00:20]} 5. O-O {[%emt 0:00:12]} Nf6 {[%emt 0:00:29]} 6. Re1 {[%emt 0:03:26]} b5 {[%emt 0:01:17]} 7. Bb3 {[%emt 0:00:01]} Na5 {[%emt 0:00:38]} 8. d4 {[%emt 0:04:05]} Bb7 {[%emt 0:00:48]} 9. Bg5 {[%emt 0:11:32]} Be7 {[%emt 0:07:21]} 10. dxe5 {[%emt 0:01:36] White is slightly better.} dxe5 {[%emt 0:03:29]} 11. Qxd8+ {[%emt 0:00:27]} Rxd8 {[%emt 0:00:12]} 12. Nxe5 {[%emt 0:00:15]} Nxb3 {[%emt 0:01:00]} 13. axb3 {[%emt 0:00:06]} Bxe4 {[%emt 0:05:13]} 14. Rxa6 {[%emt 0:09:51] [#] Hoping for Nc3.} O-O {[%emt 0:06:28][%cal Oe7c5]} (14... Bxc2 $2 {loses.} 15. Nc6 Rd1 16. Rxd1 Bxd1 17. Nc3 Bxb3 18. Ra8+ (18. Nxb5 Rg8 $18) 18... Kd7 19. Ne5+ (19. Rxh8 Kxc6 $16) 19... Ke6 20. Rxh8 $18) 15. Nc6 {[%emt 0:06:50]} Bxc6 {[%emt 0:01:00]} 16. Rxc6 {[%emt 0:00:06]} Rfe8 {[%emt 0:01:48]} 17. g3 {[%emt 0:04:47][%cal Ob1c3] White is more active.} (17. Rxc7 $2 {is the wrong capture.} Bd6 18. Rf1 (18. Rxe8+ $2 Rxe8 19. Kf1 Bxc7 $19) 18... Bxc7 $19) 17... Bd6 {[%emt 0:04:45]} 18. Rxe8+ {[%emt 0:01:25] White is clearly better.} Rxe8 {[%emt 0:00:55]} 19. Nc3 {[%emt 0:02:39]} Ne4 {[%emt 0:04:09]} 20. Nxe4 {[%emt 0:02:43]} Rxe4 {[%emt 0:00:03] [#]} 21. Bd8 $1 {[%emt 0:00:50] Black did not feel at home in the position after the opening.   Weighted Error Value: White=0.08 (flawless) /Black=0.20 (precise) .  Inaccurate:     	White=1     	Black=5      OK:         	White=6     	Black=4      Best:        	White=2     	---} 1-0

[Event "21st Bangkok CC Open 2024"]
[Site "Bangkok"]
[Date "2024.04.17"]
[Round "5.9"]
[White "Nie, Xinyang"]
[Black "Cantela, Oscar Joseph"]
[Result "1-0"]
[ECO "D90"]
[WhiteElo "2433"]
[BlackElo "2009"]
[Annotator "TA"]
[PlyCount "65"]
[EventDate "2024.04.13"]
[EventType "swiss"]
[EventCountry "THA"]
[SourceTitle "playchess.com"]
[Source "ChessBase"]
[SourceQuality "1"]
[TimeControl "40/5400+30:1800+30"]

{[%evp 11,65,12,18,22,41,33,34,29,42,36,36,0,0,0,25,0,4,-18,56,53,54,58,66,45,139,8,177,175,185,168,162,116,118,110,109,79,83,71,68,83,121,136,112,97,108,67,152,127,414,247,739,700,1727,600,1702,1650]} 1. d4 {[%emt 0:00:03]} Nf6 {[%emt 0:02:44][%cal Bg8f6,Bf6d5,Bd5b6,Bb6a4][%mdl 32]} 2. c4 {[%emt 0:00:03]} g6 {[%emt 0:00:03]} 3. Nc3 {[%emt 0:00:03]} d5 {[%emt 0:00:04]} 4. cxd5 {[%emt 0:00:42]} Nxd5 {[%emt 0:00:19]} 5. Bd2 {[%emt 0:00:11]} Nb6 {[%emt 0:00:09]} 6. Nf3 {[%emt 0:01:06]} Bg7 {[%emt 0:00:06][%cal Ob8c6]} 7. Bf4 {[%emt 0:00:19]} c5 {[%emt 0:03:29]} 8. dxc5 {[%emt 0:01:55]} Bxc3+ {[%emt 0:00:48]} 9. bxc3 {[%emt 0:00:04] White is slightly better.} Qxd1+ {[%emt 0:00:05]} 10. Rxd1 {[%emt 0:00:02]} Na4 {[%emt 0:00:54][%csl LRc3,LRc5] Black is weak on the dark squares} 11. Bh6 {[%emt 0:00:02]} f6 {[%emt 0:00:42]} 12. e4 {[%emt 0:06:16][%cal Be2e4,Be4e5,Be5e6][%mdl 32]} Nxc5 {[%emt 0:10:01]} 13. Nd4 {[%emt 0:00:04]} Nc6 $1 {[%emt 0:09:16]} 14. Bc4 {[%emt 0:01:45] Bg7 is the strong threat.} Nxd4 {[%emt 0:02:33]} ({Better is} 14... Ne5 $11 15. Bd5 e6) 15. cxd4 $14 {[%emt 0:00:05]} Be6 $1 {[%emt 0:02:53]} (15... Nxe4 16. Bg7 Rf8 17. Bxf8 Kxf8 18. Rc1 $16) 16. d5 {[%emt 0:00:55]} Bd7 {[%emt 0:01:53] [#]} 17. e5 $36 {[%emt 0:00:32][%mdl 2048] Black is under pressure.} Rg8 {[%emt 0:15:20] [#]} (17... b5 $14 18. Be2 fxe5) (17... fxe5 18. Bg7) 18. Be3 {[%emt 0:07:40] A strong pair of Bishops.} (18. e6 $1 $16 {[%cal Re6d7]} Ba4 19. Rc1) 18... Rc8 $2 {[%emt 0:11:04] [#]} (18... fxe5 $1 $11 {and Black has nothing to worry.} 19. d6 (19. Bxc5 Rc8 $11) 19... Be6) 19. e6 $1 $18 {[%emt 0:01:59]} (19. exf6 a5 20. fxe7 b5) 19... Ba4 {[%emt 0:01:26]} 20. Rc1 {[%emt 0:00:31] Strongly threatening Bxc5.} Kf8 {[%emt 0:07:17]} 21. Be2 {[%emt 0:09:02]} ({White should try} 21. Bh6+ $18 Ke8 22. O-O) 21... b6 $16 {[%emt 0:00:40][%cal Bb7b6,Bb6c5][%mdl 32]} 22. Rc4 {[%emt 0:00:07][%cal Od5d6] Black must now prevent d6! White is more active.} Kg7 {[%emt 0:10:30]} 23. Bxc5 {[%emt 0:00:55]} Bb5 {[%emt 0:00:04]} 24. Rc3 {[%emt 0:08:29]} Bxe2 {[%emt 0:01:11]} 25. Kxe2 {[%emt 0:00:04]} Rxc5 {[%emt 0:07:09]} 26. Rxc5 {[%emt 0:00:04]} bxc5 {[%emt 0:00:03][%mdl 4096] Endgame. KR-KR} 27. Kd3 {[%emt 0:17:46]} Rb8 {[%emt 0:00:31] Against Rb1} 28. Rc1 {[%emt 0:00:03]} Rb5 {[%emt 0:01:04]} (28... f5 $1 $14) 29. Kc4 {[%emt 0:00:49]} Ra5 {[%emt 0:06:58][%mdl 8192]} (29... Rb2 $16) 30. Re1 {[%emt 0:01:21]} (30. Rb1 $142 {And now Rb7 would win.} f5 (30... Rxa2 $2 31. Rb7 $18) 31. Rb8 Ra4+ 32. Kxc5 Rxa2 33. Kc6) 30... Kf8 $2 {[%emt 0:02:05]} (30... Rxa2 $2 {perishes.} 31. d6 exd6 32. e7 Rxf2 33. e8=Q $18 (33. e8=R Rxg2 34. R1e7+ Kh6 $18)) (30... Ra6 31. Re2 (31. Kxc5 f5 $16) 31... f5) 31. Rb1 $18 {[%emt 0:00:11] Rb8+ would now be deadly. White is clearly winning.} f5 {[%emt 0:01:08]} 32. Rb8+ {[%emt 0:00:10]} Kg7 {[%emt 0:00:03] [#]} 33. d6 $1 {[%emt 0:00:22][%mdl 512] Weighted Error Value: White=0.24 (precise) /Black=0.32.  Loses game:     	---       	Black=2      Mistake:       	White=3     	Black=4      Inaccurate:     	White=2     	Black=2      OK:         	White=6     	Black=8      Best:        	White=1     	Black=3      Strong:       	White=1     	Black=2} 1-0

[Event "21st Bangkok CC Open 2024"]
[Site "Bangkok"]
[Date "2024.04.17"]
[Round "5.10"]
[White "Mrudul Dehankar"]
[Black "Mitrabha, Guha"]
[Result "0-1"]
[ECO "D02"]
[WhiteElo "1981"]
[BlackElo "2537"]
[Annotator "TA"]
[PlyCount "92"]
[EventDate "2024.04.13"]
[EventType "swiss"]
[EventCountry "THA"]
[SourceTitle "playchess.com"]
[Source "ChessBase"]
[SourceQuality "1"]
[TimeControl "40/5400+30:1800+30"]

{[%evp 11,91,16,12,0,0,0,0,3,16,9,21,16,20,17,12,0,0,0,0,-10,0,0,7,3,8,0,0,0,3,-14,0,0,0,0,0,0,0,0,14,0,0,0,0,0,0,-27,0,0,0,-18,-20,-22,-16,-22,-22,-31,-26,-34,-38,-65,-64,-59,-49,-121,-138,-397,-387,-350,-339,-650,-588,-675,-676,-954,-970,-946,-888,-1345,-1264,-29976,-29963,-29999]} 1. d4 {[%emt 0:06:57]} Nf6 {[%emt 0:05:25]} 2. Bf4 {[%emt 0:00:38]} d5 {[%emt 0:01:42]} 3. e3 {[%emt 0:00:13]} c5 {[%emt 0:00:01]} 4. Nf3 {[%emt 0:00:27]} Nc6 {[%emt 0:00:21]} 5. Nbd2 {[%emt 0:00:21]} Bg4 {[%emt 0:00:13]} 6. c3 {[%emt 0:03:54]} e6 {[%emt 0:00:34]} 7. Qa4 {[%emt 0:07:20]} Nd7 {[%emt 0:03:15]} 8. Bb5 {[%emt 0:10:04]} Qc8 {[%emt 0:00:54]} 9. Ne5 {[%emt 0:02:22] The position is equal.} Ndxe5 {[%emt 0:00:40]} 10. Bxe5 {[%emt 0:00:38]} a6 {[%emt 0:00:16]} 11. Bxc6+ {[%emt 0:04:08]} Qxc6 {[%emt 0:00:25]} 12. Qxc6+ {[%emt 0:02:23]} bxc6 {[%emt 0:00:02]} 13. dxc5 {[%emt 0:00:10]} f6 $1 {[%emt 0:00:16]} 14. Bd6 {[%emt 0:02:11]} Bxd6 $1 {[%emt 0:00:02]} 15. cxd6 {[%emt 0:00:05]} Kd7 {[%emt 0:00:05]} 16. f3 {[%emt 0:11:39]} Bf5 {[%emt 0:00:50][%cal Oa6a5]} 17. e4 {[%emt 0:10:50][%cal Be3e4,Be4e5][%mdl 32]} Bg6 {[%emt 0:00:24]} 18. O-O-O {[%emt 0:01:06]} Kxd6 {[%emt 0:01:30]} 19. h4 {[%emt 0:03:37]} Bf7 {[%emt 1:23:05]} 20. Rhe1 {[%emt 0:02:08]} Kc7 {[%emt 0:00:00]} 21. e5 {[%emt 0:06:59]} a5 {[%emt 0:00:00]} 22. Nb3 {[%emt 0:01:07]} Kb6 {[%emt 0:00:00]} 23. Nd4 {[%emt 0:05:49]} c5 {[%emt 0:00:00]} 24. Ne2 {[%emt 0:01:53]} h6 {[%emt 0:00:00] [#]} 25. h5 $1 {[%emt 0:01:56]} fxe5 {[%emt 0:00:00][%cal Oa8g8]} 26. Ng3 {[%emt 0:00:48]} Rhg8 {[%emt 0:00:00]} 27. Rxe5 {[%emt 0:01:53]} g6 {[%emt 0:00:00]} 28. Rd2 {[%emt 0:03:43]} gxh5 {[%emt 0:00:00]} 29. Nxh5 {[%emt 0:00:35]} Rg5 {[%emt 0:00:00]} 30. Rxg5 {[%emt 0:03:14]} hxg5 $11 {[%emt 0:00:00][%mdl 4096] Endgame. KRB-KRN} 31. Nf6 {[%emt 0:00:02]} Kc6 {[%emt 0:00:00] Inhibits Nd7.} 32. Re2 {[%emt 0:03:11]} Kd6 {[%emt 0:00:00] Dodges Re5} 33. Ng4 {[%emt 0:01:01]} Rh8 {[%emt 0:00:00]} 34. Kd2 {[%emt 0:02:05]} a4 {[%emt 0:00:00]} 35. a3 {[%emt 0:00:31]} Rh4 {[%emt 0:00:00]} 36. Re1 {[%emt 0:01:55]} Bh5 {[%emt 0:00:00]} 37. Nf2 {[%emt 0:00:33]} (37. Ne3 $15) 37... Rh2 $17 {[%emt 0:09:00]} 38. Rh1 $2 {[%emt 0:00:32][%mdl 8192] White does not recover from this.} (38. Re2 $17 {is the only way for White.} Rxg2 39. Ne4+ dxe4 40. Rxg2 exf3 41. Rh2) 38... Rxg2 $19 {[%emt 0:00:00]} 39. Ke3 {[%emt 0:00:10]} Be8 {[%emt 0:00:00] [#] Strongly threatening ...Bb5.} 40. Rh8 $2 {[%emt 0:00:44]} (40. Rd1) 40... Bb5 {[%emt 0:00:00]} 41. Rb8 {[%emt 0:02:31]} Bf1 {[%emt 0:00:00]} 42. f4 {[%emt 0:11:15]} gxf4+ {[%emt 0:00:00]} 43. Kf3 {[%emt 0:00:35]} e5 {[%emt 0:00:00][%csl Gf4][%cal Rg2g3]} 44. Rd8+ {[%emt 0:00:29]} Kc6 {[%emt 0:00:00][%csl Gf4][%cal Rg2g3]} 45. Rc8+ {[%emt 0:01:34]} Kd7 {[%emt 0:00:00][%csl Gf4][%cal Rg2g3]} 46. Rxc5 {[%emt 0:02:02]} Rg3# {[%emt 0:00:00] Weighted Error Value: White=0.68/Black=0.03 (flawless) .  Loses game:     	White=1     	---        Mistake:       	White=2     	---        Inaccurate:     	White=3     	Black=1      OK:         	White=12    	Black=17     Best:        	White=1     	Black=3      Strong:       	---       	Black=2} 0-1

[Event "21st Bangkok CC Open 2024"]
[Site "Bangkok"]
[Date "2024.04.18"]
[Round "6.1"]
[White "Bernadskiy, Vitaliy"]
[Black "Chernyavsky, Alexander"]
[Result "1-0"]
[ECO "D38"]
[WhiteElo "2561"]
[BlackElo "2354"]
[Annotator "TA"]
[PlyCount "131"]
[EventDate "2024.04.13"]
[EventType "swiss"]
[EventCountry "THA"]
[SourceTitle "playchess.com"]
[Source "ChessBase"]
[SourceQuality "1"]
[TimeControl "40/5400+30:1800+30"]

{[%evp 49,131,53,45,70,48,48,102,50,108,109,121,103,118,122,141,140,139,156,237,234,337,318,332,318,279,172,175,149,329,334,329,275,325,329,323,322,319,328,332,313,346,202,333,330,333,333,323,312,311,307,568,333,596,584,5600,5638,5324,5215,1741,1402,1489,785,1672,1409,29947,29952,29946,12570,29967,29967,29973,29974,29979,29974,29980,29981,29983,29981,29981,29982,29988,29983,29989,29990]} 1. Nf3 {[%emt 0:00:03]} d5 {[%emt 0:04:53]} 2. d4 {[%emt 0:00:04]} Nf6 {[%emt 0:00:42]} 3. c4 {[%emt 0:00:05]} e6 {[%emt 0:00:23]} 4. Bg5 {[%emt 0:00:31]} h6 {[%emt 0:02:45]} 5. Bh4 {[%emt 0:00:18]} Bb4+ {[%emt 0:04:04]} 6. Nc3 {[%emt 0:03:06]} g5 {[%emt 0:00:42]} 7. Bg3 {[%emt 0:00:04]} Ne4 {[%emt 0:02:29]} 8. Nd2 {[%emt 0:04:25]} Nxc3 {[%emt 0:02:32]} 9. bxc3 {[%emt 0:00:05]} Bxc3 {[%emt 0:01:32]} 10. Rc1 {[%emt 0:00:05]} Bxd4 {[%emt 0:04:42]} 11. cxd5 {[%emt 0:01:14]} Bb6 {[%emt 0:07:00]} 12. d6 {[%emt 0:06:20]} cxd6 {[%emt 0:01:09]} 13. h4 {[%emt 0:00:14]} Nc6 {[%emt 0:08:00]} 14. hxg5 {[%emt 0:02:57]} d5 {[%emt 0:03:37]} 15. Rh5 {[%emt 0:20:31]} Bd4 {[%emt 0:10:05]} 16. gxh6 {[%emt 0:01:20]} f5 {[%emt 0:02:51]} 17. e3 {[%emt 0:05:16]} Bf6 {[%emt 0:01:10]} 18. Rh2 {[%emt 0:02:27]} Bd7 {[%emt 0:01:41]} 19. Bd6 {[%emt 0:07:23]} Bc8 {[%emt 0:00:31]} 20. Qh5+ {[%emt 0:02:55]} Kd7 {[%emt 0:00:06]} 21. Bg3 {[%emt 0:00:14]} a6 {[%emt 0:01:34]} 22. Nb3 {[%emt 0:04:09]} Ke7 {[%emt 0:05:16]} 23. Be2 {[%emt 0:02:45]} Bd7 {[%emt 0:02:49]} 24. Bh4 {[%emt 0:07:51]} Qf8 {[%emt 0:00:56]} 25. Nc5 {[%emt 0:02:48]} (25. g4 $16 Rxh6 (25... Qxh6 $2 26. Qxh6 Rxh6 27. g5 $18)) 25... Be8 $14 {[%emt 0:08:08]} 26. Bxf6+ {[%emt 0:00:08]} Qxf6 {[%emt 0:00:02]} 27. Qh4 {[%emt 0:00:22]} Ra7 {[%emt 0:01:06] [#]} (27... Qxh4 $1 $14 28. Rxh4 Ra7) 28. f4 {[%emt 0:06:33]} (28. Qg3 $1 $16 {[%cal Rg3c7] Intending Qc7+ and mate.} b6 29. Qg7+ (29. Nxa6 Rxh6 30. Rxh6 Qxh6 $14) 29... Qxg7 30. hxg7) 28... Nd8 {[%emt 0:09:16]} ({Better is} 28... Qxh4+ $14 29. Rxh4 Kd6) 29. Nd3 $16 {[%emt 0:01:13]} Qxh4+ {[%emt 0:04:21]} 30. Rxh4 {[%emt 0:00:04]} Nc6 {[%emt 0:00:41]} 31. Kd2 {[%emt 0:02:22]} b6 {[%emt 0:01:13]} 32. Ne5 {[%emt 0:03:51]} Nxe5 {[%emt 0:02:49]} 33. fxe5 {[%emt 0:00:03]} Bb5 {[%emt 0:00:08]} (33... Kd8 $16 34. Bd3 Rah7) 34. g4 $18 {[%emt 0:00:30]} Bxe2 {[%emt 0:01:55]} (34... fxg4 $142 35. Bxg4 (35. Rxg4 Kd8 $18) 35... Bd7) 35. Kxe2 $18 {[%emt 0:00:03]} fxg4 {[%emt 0:01:37]} 36. Rxg4 {[%emt 0:00:04]} Kd8 {[%emt 0:00:30]} 37. Rg6 {[%emt 0:00:16]} Rah7 {[%emt 0:00:38]} 38. Rh1 {[%emt 0:00:10]} (38. Rxe6 Rxh6 39. Rcc6 Rxe6 40. Rxe6 Rh2+ 41. Kd3 Kc7 $11) 38... Kd7 $2 {[%emt 0:00:38]} (38... Ke7 $16 39. Kf3 Rf8+ 40. Kg4 b5) 39. Kf3 $18 {[%emt 0:01:24]} Rf8+ {[%emt 0:00:45]} 40. Rf6 {[%emt 0:05:14]} Rg8 {[%emt 0:02:06] [#]} 41. e4 $1 {[%emt 0:36:30]} dxe4+ {[%emt 0:31:33]} 42. Kxe4 {[%emt 0:00:03]} Rg4+ {[%emt 0:01:53]} 43. Kf3 {[%emt 0:00:05]} Rd4 {[%emt 0:00:00]} 44. Rg1 {[%emt 0:00:00]} Re7 {[%emt 0:00:00]} 45. Ke3 {[%emt 0:00:00]} (45. Rf4 $142 Rd3+ 46. Kg4) 45... Rd5 {[%emt 0:00:00]} (45... Rh4 {was necessary.} 46. Kf3 Rd4) 46. Kf4 $18 {[%emt 0:00:00]} Rd2 {[%emt 0:00:00]} 47. Rh1 {[%emt 0:00:00]} Rh7 {[%emt 0:00:00]} 48. Kg5 {[%emt 0:00:00]} Rg2+ {[%emt 0:00:00]} 49. Kh5 {[%emt 0:00:00]} Ke7 $2 {[%emt 0:00:00]} (49... Rh8 {keeps fighting.} 50. a3 Kc6 51. Rxe6+ Kb5) 50. Rg6 {[%emt 0:00:00]} Rf2 $2 {[%emt 0:00:00]} (50... Rxa2 51. Rg5 Rf2) 51. Rgg1 $18 {[%emt 0:00:00]} Kf8 {[%emt 0:00:00]} 52. Rf1 {[%emt 0:00:00]} Rhf7 {[%emt 0:00:00]} 53. Rxf2 {[%emt 0:00:00]} Rxf2 {[%emt 0:00:00]} 54. Kg6 {[%emt 0:00:00]} Kg8 {[%emt 0:00:00]} 55. a4 {[%emt 0:00:00]} Rf4 {[%emt 0:00:00]} 56. Rb1 {[%emt 0:00:00]} Rxa4 {[%emt 0:00:00]} 57. Rxb6 {[%emt 0:00:00]} Rg4+ {[%emt 0:00:00]} 58. Kf6 {[%emt 0:02:28]} a5 {[%emt 0:00:00]} 59. Rxe6 {[%emt 0:01:07]} (59. Kxe6 Rg6+ 60. Kd7 Rxb6 61. e6 a4 62. e7 Rb7+ (62... Rxh6 63. e8=Q+ Kg7 64. Qe5+ Kf7 65. Qf5+ Kg7 66. Ke7 $18) 63. Ke6 Rb8 (63... Rxe7+ 64. Kxe7 a3 65. Ke6 a2 66. Kf5 Kh7 67. Kf4 Kxh6 68. Kf5 a1=Q 69. Ke4 Kg5 70. Kd5 Qc3 71. Kd6 Qc4 72. Kd7 Kg6 73. Kd8 Qc5 74. Kd7 Kf7 75. Kd8 Ke6 76. Ke8 Qe7#) 64. h7+ Kxh7 65. Kf7 a3 66. e8=Q Rxe8 67. Kxe8 a2 68. Kd7 a1=Q (68... a1=B 69. Ke8 $11) 69. Kc6 Qe5 70. Kb6 Kg6 71. Kc6 Kf5 72. Kb6 Ke6 73. Kc6 Qa5 74. Kb7 Kd7 75. Kb8 Kc6 76. Kc8 Qc7#) 59... a4 {[%emt 0:00:00]} 60. Ra6 {[%emt 0:00:04]} Rh4 {[%emt 0:00:00]} 61. Kg5 {[%emt 0:01:44]} Re4 {[%emt 0:00:00]} 62. e6 {[%emt 0:00:12]} a3 {[%emt 0:00:00]} 63. Kg6 {[%emt 0:00:13]} ({Weaker is} 63. Rxa3 Rxe6 64. Ra8+ Kh7 $11) 63... Rg4+ {[%emt 0:00:43]} 64. Kf5 {[%emt 0:00:06]} Rg3 {[%emt 0:00:07]} 65. Ra8+ {[%emt 0:00:09]} Kh7 {[%emt 0:00:10]} 66. e7 {[%emt 0:00:08]} 1-0

[Event "21st Bangkok CC Open 2024"]
[Site "Bangkok"]
[Date "2024.04.18"]
[Round "6.2"]
[White "Manon, Reja Neer"]
[Black "Urazayev, Arystanbek"]
[Result "0-1"]
[ECO "C60"]
[WhiteElo "2285"]
[BlackElo "2471"]
[Annotator "TA"]
[PlyCount "114"]
[EventDate "2024.04.13"]
[EventType "swiss"]
[EventCountry "THA"]
[SourceTitle "playchess.com"]
[Source "ChessBase"]
[SourceQuality "1"]
[TimeControl "40/5400+30:1800+30"]

{[%evp 9,114,25,24,34,55,60,53,48,38,36,48,22,10,8,7,12,25,7,19,-54,-56,-61,-22,-110,-123,-114,-116,-121,-126,-109,-101,-96,-97,-107,-83,-145,-113,-113,-111,-105,-103,-117,-97,-109,-106,-127,-136,-139,-130,-124,-117,-123,-114,-118,-96,-107,-103,-119,-114,-135,-135,-149,-154,-162,-160,-163,-156,-536,-294,-325,-314,-289,-281,-359,-330,-334,-274,-349,-349,-464,-447,-606,-604,-643,-574,-537,-540,-707,-695,-667,-675,-563,-447,-523,-511,-920,-825,-6007,-5539,-2187,-1294,-12831,-1857,-1446,-1525,-29986,-29987]} 1. e4 {[%emt 0:01:00]} e5 {[%emt 0:00:06]} 2. Nf3 {[%emt 0:00:15]} Nc6 {[%emt 0:00:06]} 3. Bb5 {[%emt 0:00:05]} a6 {[%emt 0:00:04]} 4. Ba4 {[%emt 0:00:04]} Nge7 {[%emt 0:00:04]} 5. O-O {[%emt 0:01:42]} Ng6 {[%emt 0:01:00]} 6. d4 {[%emt 0:10:42]} Nxd4 {[%emt 0:01:50]} 7. Nxd4 {[%emt 0:01:46]} exd4 {[%emt 0:00:02]} 8. Qxd4 {[%emt 0:00:34] White is slightly better.} b5 {[%emt 0:01:58]} 9. Bb3 {[%emt 0:02:05]} Bb7 {[%emt 0:00:10] [#] Wards off Qd5. White must now prevent ...c5.} 10. Qd3 {[%emt 0:14:43]} Bd6 {[%emt 0:07:16]} 11. f4 {[%emt 0:05:16]} O-O {[%emt 0:12:42]} 12. Nc3 {[%emt 0:08:26]} b4 {[%emt 0:05:58]} 13. Na4 {[%emt 0:02:01]} Bc6 {[%emt 0:06:48]} 14. Rf2 {[%emt 0:18:54]} (14. c3 $11) 14... Qe8 $1 $15 {[%emt 0:05:02]} 15. e5 {[%emt 0:22:24]} Be7 {[%emt 0:00:02] [#] And now ...d6 would win.} 16. Qe3 {[%emt 0:02:31]} (16. c3 $1 $11) 16... d6 $36 {[%emt 0:01:33][%mdl 2048] Black is really pushing.} 17. exd6 {[%emt 0:03:45]} Bxd6 {[%emt 0:00:02]} 18. Nc5 {[%emt 0:02:16]} Qxe3 {[%emt 0:10:11]} (18... Bxg2 {keeps more tension.} 19. Kxg2 Qc6+ 20. Ne4 Rae8) 19. Bxe3 {[%emt 0:00:00]} Rae8 {[%emt 0:05:22]} 20. Bd4 {[%emt 0:00:00]} Nxf4 {[%emt 0:00:11]} 21. Bc4 {[%emt 0:00:01] Repels Ne2+} Bb5 {[%emt 0:01:05]} 22. Bf1 {[%emt 0:02:17]} (22. Nb7 $142 Bxc4 23. Nxd6 Nh3+ (23... cxd6 24. Rxf4 Rc8 25. a3 $17) 24. gxh3 cxd6 25. Rd2) 22... Bxf1 {[%emt 0:02:11]} 23. Kxf1 {[%emt 0:00:01]} Ne6 {[%emt 0:00:14]} 24. Nxe6 {[%emt 0:00:56]} Rxe6 {[%emt 0:00:02]} 25. Rf3 {[%emt 0:00:38]} Rfe8 {[%emt 0:01:47][%cal Oe6e2]} ({Reject} 25... Bxh2 $6 26. g3 $15) 26. Rd1 {[%emt 0:00:32]} h5 {[%emt 0:03:14]} 27. h3 {[%emt 0:00:29]} Re2 {[%emt 0:01:12]} 28. Rf2 {[%emt 0:00:31]} R2e4 {[%emt 0:00:05] Black is more active.} 29. Rf3 {[%emt 0:00:21]} h4 {[%emt 0:01:49]} 30. Bf2 {[%emt 0:00:16]} f6 {[%emt 0:04:31]} 31. Re1 {[%emt 0:00:26][%cal Of2h4]} Rxe1+ {[%emt 0:00:35]} 32. Bxe1 {[%emt 0:00:01][%mdl 4096] Endgame. KRB-KRB} Re4 {[%emt 0:00:15]} 33. c3 {[%emt 0:00:59]} a5 {[%emt 0:01:44]} 34. Rd3 {[%emt 0:00:41]} Kf7 {[%emt 0:03:30]} 35. b3 {[%emt 0:00:48]} Ke6 {[%emt 0:01:37]} 36. Bf2 {[%emt 0:00:18]} g5 {[%emt 0:10:22]} 37. c4 {[%emt 0:00:10]} a4 {[%emt 0:04:48]} 38. Rd4 $2 {[%emt 0:00:55] This costs White the game.} (38. Bd4 $17 {is tougher.}) 38... Re5 {[%emt 0:02:09] ...axb3 would now be deadly.} 39. Rd3 {[%emt 0:00:27]} axb3 {[%emt 0:00:49]} 40. axb3 {[%emt 0:00:02]} Ra5 {[%emt 0:00:10]} 41. Ke2 {[%emt 0:02:41]} Ra2+ {[%emt 0:07:10]} 42. Kf3 {[%emt 0:01:38]} Rc2 {[%emt 0:02:40]} 43. Be3 {[%emt 0:07:56]} Be5 {[%emt 0:03:30]} 44. Ba7 {[%emt 0:05:24]} Bc3 {[%emt 0:02:39]} 45. Bb8 {[%emt 0:08:24]} c5 {[%emt 0:02:40]} 46. g3 {[%emt 0:00:30]} hxg3 {[%emt 0:04:33]} 47. Bxg3 {[%emt 0:01:00]} Rb2 {[%emt 0:00:14]} 48. Bf2 {[%emt 0:01:30]} Rxb3 {[%emt 0:00:23]} 49. Bxc5 {[%emt 0:00:02]} Rb1 {[%emt 0:00:12]} 50. Ke2 {[%emt 0:03:14]} Re1+ {[%emt 0:01:52]} 51. Kf2 {[%emt 0:01:11][%cal Od3c3] Threatens to win with Rxc3!} Re4 {[%emt 0:00:30]} 52. Re3 {[%emt 0:01:00]} (52. Rd6+ $142 Kf5 53. Rd5+ Ke6 (53... Kg6 $2 54. Bd6 $19) 54. Rd6+ Kf7 55. Rd7+ Ke6 (55... Kg6 $2 56. Rb7 $19) 56. Rd6+) 52... Kf5 $19 {[%emt 0:00:01]} 53. Bb6 {[%emt 0:02:34]} Rxc4 {[%emt 0:00:21]} 54. Ke2 {[%emt 0:00:20]} b3 {[%emt 0:01:49]} 55. Kd3 {[%emt 0:00:16]} Rc6 {[%emt 0:00:40]} (55... b2 $142 56. Rf3+ Kg6 57. Kxc4 b1=Q (57... b1=B $2 {perishes.} 58. Rxc3 f5 59. Rc1 $18) 58. Kxc3 Qxb6) 56. Rf3+ {[%emt 0:00:22]} Kg6 {[%emt 0:00:50][%cal Ob3b2] ( -> ...b2!)} 57. Bd4 {[%emt 0:00:07]} b2 {[%emt 0:00:42] Weighted Error Value: White=0.84/Black=0.21 (precise) .  Loses game:     	White=1     	---        Mistake:       	White=4     	---        Inaccurate:     	White=5     	Black=1      OK:         	White=11    	Black=22     Best:        	White=1     	Black=5      Strong:       	---       	Black=1} 0-1